[Event "Titled Tuesday Blitz May 03 Early 2022"]
[White "Tan, Jun Ying"]
[Black "Meshkovs, Nikita"]
[WhiteFideId "5710413"]
[BlackFideId "11602740"]
[WhiteElo "1827"]
[BlackElo "2506"]
[Result "0-1"]
[Round "02"]
[TimeControl "180+1"]
[Date "2022.05.03"]
[WhiteClock "0:00:42"]
[BlackClock "0:00:22"]

1. d4 {[%clk 0:03:00]}  Nf6 {[%clk 0:02:54]} 2. c4 {[%clk 0:03:01]}  e6 {[%clk 0:02:53]} 3. Nc3 {[%clk 0:03:01]}  Bb4 {[%clk 0:02:53]} 4. e3 {[%clk 0:03:01]}  O-O {[%clk 0:02:52]} 5. Ne2 {[%clk 0:03:01]}  d5 {[%clk 0:02:47]} 6. a3 {[%clk 0:03:00]}  Be7 {[%clk 0:02:44]} 7. cxd5 {[%clk 0:03:00]}  exd5 {[%clk 0:02:45]} 8. Nf4 {[%clk 0:03:00]}  b6 {[%clk 0:02:38]} 9. Bd3 {[%clk 0:02:58]}  Bb7 {[%clk 0:02:33]} 10. O-O {[%clk 0:02:59]}  c5 {[%clk 0:02:30]} 11. f3 {[%clk 0:02:59]}  cxd4 {[%clk 0:02:09]} 12. exd4 {[%clk 0:03:00]}  Nc6 {[%clk 0:02:09]} 13. Bc2 {[%clk 0:02:58]}  Nxd4 {[%clk 0:02:05]} 14. Be3 {[%clk 0:02:51]}  Nxc2 {[%clk 0:01:56]} 15. Qxc2 {[%clk 0:02:52]}  d4 {[%clk 0:01:20]} 16. Rad1 {[%clk 0:02:50]}  Qb8 {[%clk 0:01:19]} 17. Rxd4 {[%clk 0:02:30]}  Bc5 {[%clk 0:01:19]} 18. Nd3 {[%clk 0:02:18]}  Bxd4 {[%clk 0:01:13]} 19. Bxd4 {[%clk 0:02:19]}  Qd8 {[%clk 0:01:03]} 20. Qf2 {[%clk 0:02:15]}  Nd5 {[%clk 0:00:49]} 21. Ne4 {[%clk 0:02:11]}  Rc8 {[%clk 0:00:41]} 22. Qg3 {[%clk 0:01:53]}  f6 {[%clk 0:00:41]} 23. Nd6 {[%clk 0:01:52]}  Rc7 {[%clk 0:00:42]} 24. Nf5 {[%clk 0:01:49]}  Bc8 {[%clk 0:00:38]} 25. Nd6 {[%clk 0:01:36]}  Rd7 {[%clk 0:00:34]} 26. Nxc8 {[%clk 0:01:33]}  Qxc8 {[%clk 0:00:35]} 27. Nf2 {[%clk 0:01:28]}  Qc7 {[%clk 0:00:27]} 28. Qg4 {[%clk 0:01:26]}  Nf4 {[%clk 0:00:26]} 29. Be3 {[%clk 0:01:21]}  Ng6 {[%clk 0:00:24]} 30. Qe6+ {[%clk 0:01:18]}  Kh8 {[%clk 0:00:23]} 31. Ne4 {[%clk 0:01:19]}  Re7 {[%clk 0:00:23]} 32. Qb3 {[%clk 0:01:15]}  f5 {[%clk 0:00:21]} 33. Rc1 {[%clk 0:01:09]}  Qe5 {[%clk 0:00:21]} 34. Bg5 {[%clk 0:00:52]}  fxe4 {[%clk 0:00:20]} 35. Bxe7 {[%clk 0:00:52]}  Qxe7 {[%clk 0:00:21]} 36. fxe4 {[%clk 0:00:52]}  Qxe4 {[%clk 0:00:21]} 37. Qc3 {[%clk 0:00:52]}  h6 {[%clk 0:00:20]} 38. Qg3 {[%clk 0:00:51]}  Kh7 {[%clk 0:00:20]} 39. h3 {[%clk 0:00:49]}  Qd4+ {[%clk 0:00:20]} 40. Kh1 {[%clk 0:00:49]}  Qxb2 {[%clk 0:00:20]} 41. Rc7 {[%clk 0:00:49]}  Qa1+ {[%clk 0:00:19]} 42. Kh2 {[%clk 0:00:49]}  Rf1 {[%clk 0:00:20]} 43. Qd6 {[%clk 0:00:45]}  Rh1+ {[%clk 0:00:20]} 44. Kg3 {[%clk 0:00:46]}  Qe1+ {[%clk 0:00:20]} 45. Kg4 {[%clk 0:00:45]}  Qh4+ {[%clk 0:00:20]} 46. Kf5 {[%clk 0:00:46]}  Rf1+ {[%clk 0:00:20]} 47. Ke6 {[%clk 0:00:45]}  Rf6+ {[%clk 0:00:21]} 48. Kd7 {[%clk 0:00:45]}  Qa4+ {[%clk 0:00:21]} 49. Rc6 {[%clk 0:00:43]}  Ne5+ {[%clk 0:00:20]} 50. Qxe5 {[%clk 0:00:43]}  Qxc6+ {[%clk 0:00:21]} 51. Ke7 {[%clk 0:00:43]}  Qc5+ {[%clk 0:00:20]} 52. Qxc5 {[%clk 0:00:42]}  bxc5 {[%clk 0:00:21]} 53. g4 {[%clk 0:00:42]}  c4 {[%clk 0:00:22]} 0-1


[Site "https://www.chess.com"]

[Event "Titled Tuesday Blitz May 03 Early 2022"]
[White "Terzi, Alexei"]
[Black "Fernandez Siles, Luis"]
[WhiteFideId "13505076"]
[BlackFideId "2209420"]
[WhiteElo "2031"]
[BlackElo "2212"]
[Result "1-0"]
[Round "02"]
[TimeControl "180+1"]
[Date "2022.05.03"]
[WhiteClock "0:00:14"]
[BlackClock "0:00:07"]

1. e4 {[%clk 0:03:00]}  c5 {[%clk 0:02:59]} 2. Nf3 {[%clk 0:03:00]}  Nc6 {[%clk 0:02:58]} 3. d4 {[%clk 0:03:01]}  cxd4 {[%clk 0:02:58]} 4. Nxd4 {[%clk 0:03:01]}  Nf6 {[%clk 0:02:58]} 5. Nc3 {[%clk 0:03:01]}  e5 {[%clk 0:02:59]} 6. Ndb5 {[%clk 0:03:02]}  d6 {[%clk 0:03:00]} 7. Bg5 {[%clk 0:03:02]}  a6 {[%clk 0:03:00]} 8. Na3 {[%clk 0:03:01]}  b5 {[%clk 0:03:01]} 9. Nd5 {[%clk 0:03:02]}  Be7 {[%clk 0:03:02]} 10. Bxf6 {[%clk 0:03:02]}  Bxf6 {[%clk 0:03:02]} 11. c3 {[%clk 0:03:03]}  O-O {[%clk 0:03:02]} 12. Nc2 {[%clk 0:03:03]}  Rb8 {[%clk 0:03:03]} 13. Ncb4 {[%clk 0:02:58]}  Bb7 {[%clk 0:02:44]} 14. Bd3 {[%clk 0:02:50]}  Nxb4 {[%clk 0:02:42]} 15. Nxb4 {[%clk 0:02:51]}  a5 {[%clk 0:02:41]} 16. Nd5 {[%clk 0:02:48]}  Bxd5 {[%clk 0:02:40]} 17. exd5 {[%clk 0:02:49]}  e4 {[%clk 0:02:21]} 18. Be2 {[%clk 0:02:40]}  b4 {[%clk 0:02:18]} 19. O-O {[%clk 0:02:36]}  bxc3 {[%clk 0:02:17]} 20. bxc3 {[%clk 0:02:37]}  Bxc3 {[%clk 0:02:16]} 21. Rc1 {[%clk 0:02:37]}  Be5 {[%clk 0:02:16]} 22. a4 {[%clk 0:02:21]}  f5 {[%clk 0:02:11]} 23. Bb5 {[%clk 0:02:18]}  Qh4 {[%clk 0:02:01]} 24. g3 {[%clk 0:02:17]}  Qh3 {[%clk 0:01:57]} 25. Bd7 {[%clk 0:02:14]}  Rf6 {[%clk 0:01:57]} 26. Be6+ {[%clk 0:02:09]}  Kh8 {[%clk 0:01:53]} 27. Rc2 {[%clk 0:02:02]}  h5 {[%clk 0:01:37]} 28. f4 {[%clk 0:01:31]}  exf3 {[%clk 0:01:34]} 29. Qxf3 {[%clk 0:01:23]}  Bd4+ {[%clk 0:01:00]} 30. Kh1 {[%clk 0:01:22]}  Rb3 {[%clk 0:01:00]} 31. Rc8+ {[%clk 0:01:10]}  Kh7 {[%clk 0:00:59]} 32. Bxf5+ {[%clk 0:01:04]}  g6 {[%clk 0:00:29]} 33. Rc7+ {[%clk 0:00:45]}  Kh8 {[%clk 0:00:23]} 34. Re1 {[%clk 0:00:29]}  Rf8 {[%clk 0:00:17]} 35. Qxb3 {[%clk 0:00:24]}  Qxf5 {[%clk 0:00:15]} 36. Rce7 {[%clk 0:00:21]}  Qf2 {[%clk 0:00:15]} 37. R7e2 {[%clk 0:00:19]}  Qf5 {[%clk 0:00:14]} 38. Kg2 {[%clk 0:00:16]}  h4 {[%clk 0:00:15]} 39. h3 {[%clk 0:00:16]}  hxg3 {[%clk 0:00:15]} 40. Qxg3 {[%clk 0:00:16]}  Qxd5+ {[%clk 0:00:15]} 41. Re4 {[%clk 0:00:13]}  Be5 {[%clk 0:00:15]} 42. Qh4+ {[%clk 0:00:13]}  Kg7 {[%clk 0:00:15]} 43. Qg4 {[%clk 0:00:13]}  Qd2+ {[%clk 0:00:15]} 44. Qe2 {[%clk 0:00:14]}  Qg5+ {[%clk 0:00:15]} 45. Qg4 {[%clk 0:00:14]}  Qd2+ {[%clk 0:00:14]} 46. Qe2 {[%clk 0:00:15]}  Qg5+ {[%clk 0:00:14]} 47. Rg4 {[%clk 0:00:15]}  Qh5 {[%clk 0:00:13]} 48. Qe4 {[%clk 0:00:15]}  Rf5 {[%clk 0:00:12]} 49. Re2 {[%clk 0:00:14]}  Qh8 {[%clk 0:00:10]} 50. Qxf5 {[%clk 0:00:13]}  Qa8+ {[%clk 0:00:07]} 51. Qe4 {[%clk 0:00:14]} 1-0


[Site "https://www.chess.com"]

[Event "Titled Tuesday Blitz May 03 Early 2022"]
[White "Trost, Edvin"]
[Black "Yilmaz, Mustafa"]
[WhiteFideId "1729519"]
[BlackFideId "6302718"]
[WhiteElo "2160"]
[BlackElo "2568"]
[Result "1-0"]
[Round "02"]
[TimeControl "180+1"]
[Date "2022.05.03"]
[WhiteClock "0:01:10"]
[BlackClock "0:00:03"]

1. d4 {[%clk 0:02:58]}  Nf6 {[%clk 0:02:57]} 2. c4 {[%clk 0:02:56]}  e6 {[%clk 0:02:57]} 3. g3 {[%clk 0:02:55]}  c5 {[%clk 0:02:56]} 4. Nf3 {[%clk 0:02:53]}  cxd4 {[%clk 0:02:54]} 5. Nxd4 {[%clk 0:02:54]}  Qc7 {[%clk 0:02:55]} 6. Nd2 {[%clk 0:02:50]}  Nc6 {[%clk 0:02:53]} 7. N4f3 {[%clk 0:02:43]}  Bc5 {[%clk 0:02:32]} 8. Bg2 {[%clk 0:02:42]}  Bxf2+ {[%clk 0:02:11]} 9. Kxf2 {[%clk 0:02:43]}  Ng4+ {[%clk 0:02:08]} 10. Ke1 {[%clk 0:02:42]}  Ne3 {[%clk 0:02:08]} 11. Qb3 {[%clk 0:02:43]}  Nb4 {[%clk 0:02:09]} 12. Kf2 {[%clk 0:02:31]}  Nbc2 {[%clk 0:02:02]} 13. Rb1 {[%clk 0:02:24]}  f5 {[%clk 0:01:30]} 14. Nf1 {[%clk 0:02:18]}  Ng4+ {[%clk 0:00:58]} 15. Kg1 {[%clk 0:02:16]}  Qc5+ {[%clk 0:00:59]} 16. e3 {[%clk 0:02:12]}  Nb4 {[%clk 0:00:59]} 17. h3 {[%clk 0:02:09]}  Nf6 {[%clk 0:00:58]} 18. Nd4 {[%clk 0:02:01]}  O-O {[%clk 0:00:55]} 19. Kh2 {[%clk 0:02:00]}  a5 {[%clk 0:00:51]} 20. Bd2 {[%clk 0:01:59]}  Nc6 {[%clk 0:00:51]} 21. Qb5 {[%clk 0:01:57]}  Qe7 {[%clk 0:00:50]} 22. Nf3 {[%clk 0:01:56]}  a4 {[%clk 0:00:42]} 23. Bc3 {[%clk 0:01:55]}  Ne4 {[%clk 0:00:42]} 24. Rc1 {[%clk 0:01:54]}  b6 {[%clk 0:00:34]} 25. Ne5 {[%clk 0:01:39]}  Nxe5 {[%clk 0:00:25]} 26. Qxe5 {[%clk 0:01:40]}  d6 {[%clk 0:00:22]} 27. Bb4 {[%clk 0:01:39]}  Nc5 {[%clk 0:00:17]} 28. Bxc5 {[%clk 0:01:36]}  bxc5 {[%clk 0:00:18]} 29. Qc3 {[%clk 0:01:36]}  Rb8 {[%clk 0:00:18]} 30. Nd2 {[%clk 0:01:37]}  Bb7 {[%clk 0:00:16]} 31. Bxb7 {[%clk 0:01:37]}  Rxb7 {[%clk 0:00:17]} 32. Rhd1 {[%clk 0:01:36]}  h5 {[%clk 0:00:16]} 33. Nf3 {[%clk 0:01:35]}  Rb6 {[%clk 0:00:17]} 34. Rc2 {[%clk 0:01:34]}  Qb7 {[%clk 0:00:17]} 35. Rf1 {[%clk 0:01:31]}  Rb8 {[%clk 0:00:15]} 36. Rff2 {[%clk 0:01:31]}  Qe7 {[%clk 0:00:13]} 37. h4 {[%clk 0:01:28]}  Qf6 {[%clk 0:00:13]} 38. Qd2 {[%clk 0:01:19]}  Qe7 {[%clk 0:00:08]} 39. Ng5 {[%clk 0:01:19]}  Qf6 {[%clk 0:00:08]} 40. Qe2 {[%clk 0:01:20]}  g6 {[%clk 0:00:08]} 41. e4 {[%clk 0:01:20]}  Qe5 {[%clk 0:00:07]} 42. exf5 {[%clk 0:01:18]}  Qxe2 {[%clk 0:00:08]} 43. Rfxe2 {[%clk 0:01:15]}  exf5 {[%clk 0:00:09]} 44. Kh3 {[%clk 0:01:14]}  R8b7 {[%clk 0:00:09]} 45. Re6 {[%clk 0:01:15]}  Rxb2 {[%clk 0:00:08]} 46. Rxg6+ {[%clk 0:01:14]}  Kf8 {[%clk 0:00:08]} 47. Rxb2 {[%clk 0:01:13]}  Rxb2 {[%clk 0:00:09]} 48. Rxd6 {[%clk 0:01:14]}  Rxa2 {[%clk 0:00:09]} 49. Rf6+ {[%clk 0:01:14]}  Kg7 {[%clk 0:00:09]} 50. Rxf5 {[%clk 0:01:15]}  a3 {[%clk 0:00:08]} 51. Rxc5 {[%clk 0:01:15]}  Rc2 {[%clk 0:00:06]} 52. Ra5 {[%clk 0:01:16]}  a2 {[%clk 0:00:07]} 53. c5 {[%clk 0:01:15]}  Kf6 {[%clk 0:00:07]} 54. c6 {[%clk 0:01:16]}  Ke7 {[%clk 0:00:07]} 55. Ra7+ {[%clk 0:01:15]}  Kd6 {[%clk 0:00:07]} 56. c7 {[%clk 0:01:15]}  Kd7 {[%clk 0:00:08]} 57. Ne4 {[%clk 0:01:15]}  Re2 {[%clk 0:00:03]} 58. Nd6 {[%clk 0:01:10]} 1-0


[Site "https://www.chess.com"]

[Event "Titled Tuesday Blitz May 03 Early 2022"]
[White "Vasquez Schroeder, Rodrigo"]
[Black "Gallegos Diaz, Carlos Alberto"]
[WhiteFideId "3400042"]
[BlackFideId "3900886"]
[WhiteElo "2561"]
[BlackElo "2362"]
[Result "1-0"]
[Round "02"]
[TimeControl "180+1"]
[Date "2022.05.03"]
[WhiteClock "0:02:01"]
[BlackClock "0:01:05"]

1. e4 {[%clk 0:03:00]}  d6 {[%clk 0:02:59]} 2. d4 {[%clk 0:03:00]}  Nf6 {[%clk 0:02:59]} 3. Nc3 {[%clk 0:03:00]}  c6 {[%clk 0:02:59]} 4. a4 {[%clk 0:02:59]}  Qa5 {[%clk 0:02:59]} 5. Bd3 {[%clk 0:02:59]}  e5 {[%clk 0:02:59]} 6. Ne2 {[%clk 0:02:59]}  Be7 {[%clk 0:02:59]} 7. O-O {[%clk 0:02:59]}  O-O {[%clk 0:02:59]} 8. h3 {[%clk 0:03:00]}  Nbd7 {[%clk 0:02:58]} 9. Be3 {[%clk 0:02:59]}  Re8 {[%clk 0:02:58]} 10. Qd2 {[%clk 0:02:56]}  Bf8 {[%clk 0:02:50]} 11. Rab1 {[%clk 0:02:51]}  a6 {[%clk 0:02:46]} 12. b4 {[%clk 0:02:50]}  Qc7 {[%clk 0:02:46]} 13. a5 {[%clk 0:02:50]}  exd4 {[%clk 0:02:41]} 14. Nxd4 {[%clk 0:02:49]}  c5 {[%clk 0:02:41]} 15. Nf5 {[%clk 0:02:45]}  c4 {[%clk 0:02:38]} 16. Be2 {[%clk 0:02:42]}  Nxe4 {[%clk 0:02:34]} 17. Nxe4 {[%clk 0:02:43]}  Rxe4 {[%clk 0:02:35]} 18. Rfd1 {[%clk 0:02:39]}  Re5 {[%clk 0:02:27]} 19. Nxd6 {[%clk 0:02:32]}  c3 {[%clk 0:02:20]} 20. Qd4 {[%clk 0:02:30]}  Bxd6 {[%clk 0:01:37]} 21. Qxd6 {[%clk 0:02:29]}  Qxd6 {[%clk 0:01:38]} 22. Rxd6 {[%clk 0:02:29]}  Nf6 {[%clk 0:01:37]} 23. Bf3 {[%clk 0:02:22]}  Bf5 {[%clk 0:01:35]} 24. Bxb7 {[%clk 0:02:16]}  Rb8 {[%clk 0:01:35]} 25. Bxa6 {[%clk 0:02:10]}  Bxc2 {[%clk 0:01:34]} 26. Rc1 {[%clk 0:02:09]}  Ba4 {[%clk 0:01:23]} 27. Rxc3 {[%clk 0:02:07]}  Rxb4 {[%clk 0:01:20]} 28. Rc8+ {[%clk 0:02:05]}  Re8 {[%clk 0:01:19]} 29. Rxe8+ {[%clk 0:02:02]}  Nxe8 {[%clk 0:01:09]} 30. Rb6 {[%clk 0:02:01]}  Re4 {[%clk 0:01:05]} 31. Bb7 {[%clk 0:02:01]} 1-0


[Site "https://www.chess.com"]

[Event "Titled Tuesday Blitz May 03 Early 2022"]
[White "Vifleemskaia, Svetlana"]
[Black "Nagy, Gabor"]
[WhiteFideId "4129490"]
[BlackFideId "737119"]
[WhiteElo "1901"]
[BlackElo "2534"]
[Result "0-1"]
[Round "02"]
[TimeControl "180+1"]
[Date "2022.05.03"]
[WhiteClock "0:00:01"]
[BlackClock "0:01:18"]

1. d4 {[%clk 0:03:00]}  g6 {[%clk 0:03:00]} 2. c4 {[%clk 0:02:59]}  Bg7 {[%clk 0:03:01]} 3. e4 {[%clk 0:02:59]}  d6 {[%clk 0:03:01]} 4. Nc3 {[%clk 0:02:58]}  Nc6 {[%clk 0:03:01]} 5. d5 {[%clk 0:02:58]}  Nd4 {[%clk 0:03:01]} 6. Be3 {[%clk 0:02:59]}  c5 {[%clk 0:03:01]} 7. Nge2 {[%clk 0:02:59]}  Bg4 {[%clk 0:03:00]} 8. h3 {[%clk 0:02:56]}  Bxe2 {[%clk 0:02:58]} 9. Bxe2 {[%clk 0:02:56]}  e6 {[%clk 0:02:46]} 10. O-O {[%clk 0:02:46]}  Ne7 {[%clk 0:02:36]} 11. Bd3 {[%clk 0:02:22]}  O-O {[%clk 0:02:34]} 12. Ne2 {[%clk 0:02:22]}  exd5 {[%clk 0:02:31]} 13. cxd5 {[%clk 0:02:18]}  Nxe2+ {[%clk 0:02:31]} 14. Qxe2 {[%clk 0:02:17]}  a6 {[%clk 0:02:29]} 15. a4 {[%clk 0:02:17]}  f5 {[%clk 0:02:28]} 16. Bg5 {[%clk 0:02:06]}  f4 {[%clk 0:02:23]} 17. f3 {[%clk 0:02:00]}  h6 {[%clk 0:02:22]} 18. Bh4 {[%clk 0:01:59]}  g5 {[%clk 0:02:20]} 19. Bf2 {[%clk 0:01:59]}  Ng6 {[%clk 0:02:18]} 20. e5 {[%clk 0:01:45]}  Nxe5 {[%clk 0:02:16]} 21. Bc2 {[%clk 0:01:45]}  Re8 {[%clk 0:02:03]} 22. Qe4 {[%clk 0:01:44]}  Qf6 {[%clk 0:02:04]} 23. Rfe1 {[%clk 0:01:39]}  Re7 {[%clk 0:01:59]} 24. Qh7+ {[%clk 0:01:38]}  Kf7 {[%clk 0:01:57]} 25. Qe4 {[%clk 0:01:20]}  h5 {[%clk 0:01:55]} 26. a5 {[%clk 0:01:13]}  Rae8 {[%clk 0:01:53]} 27. Qa4 {[%clk 0:01:08]}  g4 {[%clk 0:01:50]} 28. Re4 {[%clk 0:01:01]}  Bh6 {[%clk 0:01:46]} 29. fxg4 {[%clk 0:00:41]}  hxg4 {[%clk 0:01:46]} 30. Rae1 {[%clk 0:00:41]}  Kg7 {[%clk 0:01:40]} 31. Rf1 {[%clk 0:00:32]}  gxh3 {[%clk 0:01:38]} 32. gxh3 {[%clk 0:00:21]}  Nf3+ {[%clk 0:01:36]} 33. Kh1 {[%clk 0:00:19]}  Qf7 {[%clk 0:01:26]} 34. Rxe7 {[%clk 0:00:16]}  Rxe7 {[%clk 0:01:27]} 35. Bxc5 {[%clk 0:00:13]}  Qxd5 {[%clk 0:01:21]} 36. Rd1 {[%clk 0:00:04]}  Nd4+ {[%clk 0:01:19]} 37. Kh2 {[%clk 0:00:03]}  Re2+ {[%clk 0:01:18]} 38. Kg1 {[%clk 0:00:01]}  Qg2# {[%clk 0:01:18]} 0-1


[Site "https://www.chess.com"]

[Event "Titled Tuesday Blitz May 03 Early 2022"]
[White "Vignesh, N R"]
[Black "Silvestre, Christian"]
[WhiteFideId "25012215"]
[BlackFideId "30956269"]
[WhiteElo "2363"]
[BlackElo "2363"]
[Result "1-0"]
[Round "02"]
[TimeControl "180+1"]
[Date "2022.05.03"]
[WhiteClock "0:00:41"]
[BlackClock "0:00:18"]

1. d4 {[%clk 0:03:00]}  Nf6 {[%clk 0:02:58]} 2. c4 {[%clk 0:03:00]}  g6 {[%clk 0:02:58]} 3. Nc3 {[%clk 0:02:59]}  Bg7 {[%clk 0:02:58]} 4. e4 {[%clk 0:02:58]}  d6 {[%clk 0:02:58]} 5. f3 {[%clk 0:02:55]}  O-O {[%clk 0:02:54]} 6. Be3 {[%clk 0:02:56]}  e5 {[%clk 0:02:50]} 7. d5 {[%clk 0:02:52]}  c5 {[%clk 0:02:47]} 8. h4 {[%clk 0:02:40]}  h5 {[%clk 0:02:43]} 9. Nh3 {[%clk 0:02:39]}  Na6 {[%clk 0:02:34]} 10. Qd2 {[%clk 0:02:37]}  Nc7 {[%clk 0:02:32]} 11. Bh6 {[%clk 0:02:35]}  Rb8 {[%clk 0:02:29]} 12. Bxg7 {[%clk 0:02:34]}  Kxg7 {[%clk 0:02:30]} 13. a4 {[%clk 0:02:28]}  a6 {[%clk 0:02:16]} 14. Nf2 {[%clk 0:02:21]}  Rh8 {[%clk 0:02:10]} 15. Be2 {[%clk 0:02:17]}  Bd7 {[%clk 0:02:07]} 16. a5 {[%clk 0:02:11]}  b5 {[%clk 0:02:04]} 17. axb6 {[%clk 0:02:12]}  Rxb6 {[%clk 0:02:02]} 18. g4 {[%clk 0:02:11]}  Qb8 {[%clk 0:01:53]} 19. Ra2 {[%clk 0:02:10]}  Qb7 {[%clk 0:01:30]} 20. g5 {[%clk 0:02:09]}  Nh7 {[%clk 0:01:28]} 21. f4 {[%clk 0:02:02]}  Rb8 {[%clk 0:00:58]} 22. Nd3 {[%clk 0:02:01]}  exf4 {[%clk 0:00:49]} 23. Qxf4 {[%clk 0:02:02]}  Ne8 {[%clk 0:00:46]} 24. O-O {[%clk 0:01:54]}  Bc8 {[%clk 0:00:43]} 25. e5 {[%clk 0:01:51]}  Qe7 {[%clk 0:00:42]} 26. exd6 {[%clk 0:01:45]}  Qxd6 {[%clk 0:00:41]} 27. Qxd6 {[%clk 0:01:42]}  Nxd6 {[%clk 0:00:42]} 28. Nxc5 {[%clk 0:01:29]}  Rxb2 {[%clk 0:00:40]} 29. Rxb2 {[%clk 0:01:27]}  Rxb2 {[%clk 0:00:41]} 30. Bd3 {[%clk 0:01:21]}  Bf5 {[%clk 0:00:25]} 31. N5e4 {[%clk 0:01:12]}  Bxe4 {[%clk 0:00:23]} 32. Bxe4 {[%clk 0:01:13]}  Nxc4 {[%clk 0:00:21]} 33. Bd3 {[%clk 0:01:09]}  Ne5 {[%clk 0:00:20]} 34. Bxa6 {[%clk 0:01:07]}  Rd2 {[%clk 0:00:20]} 35. Rf2 {[%clk 0:00:54]}  Rd4 {[%clk 0:00:19]} 36. Re2 {[%clk 0:00:48]}  Rg4+ {[%clk 0:00:17]} 37. Kf2 {[%clk 0:00:47]}  Rf4+ {[%clk 0:00:17]} 38. Ke3 {[%clk 0:00:43]}  Nd7 {[%clk 0:00:18]} 39. Kxf4 {[%clk 0:00:41]} 1-0


[Site "https://www.chess.com"]

[Event "Titled Tuesday Blitz May 03 Early 2022"]
[White "Vokarev, Sergey"]
[Black "Pranav, V"]
[WhiteFideId "4119711"]
[BlackFideId "25060783"]
[WhiteElo "2343"]
[BlackElo "2349"]
[Result "0-1"]
[Round "02"]
[TimeControl "180+1"]
[Date "2022.05.03"]
[WhiteClock "0:00:05"]
[BlackClock "0:00:18"]

1. e4 {[%clk 0:03:00]}  e5 {[%clk 0:02:59]} 2. Nf3 {[%clk 0:03:00]}  Nc6 {[%clk 0:02:59]} 3. Bb5 {[%clk 0:03:00]}  a6 {[%clk 0:02:58]} 4. Bxc6 {[%clk 0:03:00]}  dxc6 {[%clk 0:02:58]} 5. Nc3 {[%clk 0:03:01]}  f6 {[%clk 0:02:56]} 6. d4 {[%clk 0:03:01]}  exd4 {[%clk 0:02:54]} 7. Nxd4 {[%clk 0:03:02]}  Bd6 {[%clk 0:02:54]} 8. Qh5+ {[%clk 0:02:50]}  g6 {[%clk 0:02:54]} 9. Qh4 {[%clk 0:02:48]}  Qe7 {[%clk 0:02:42]} 10. Be3 {[%clk 0:02:41]}  Bd7 {[%clk 0:02:41]} 11. O-O-O {[%clk 0:02:40]}  O-O-O {[%clk 0:02:41]} 12. Rhe1 {[%clk 0:02:31]}  h5 {[%clk 0:02:37]} 13. f3 {[%clk 0:02:26]}  Nh6 {[%clk 0:02:31]} 14. Qf2 {[%clk 0:02:16]}  Nf7 {[%clk 0:02:30]} 15. Nb3 {[%clk 0:02:05]}  Ne5 {[%clk 0:02:18]} 16. Bc5 {[%clk 0:01:54]}  Be6 {[%clk 0:01:58]} 17. Bxd6 {[%clk 0:01:53]}  cxd6 {[%clk 0:01:59]} 18. Qa7 {[%clk 0:01:52]}  Bxb3 {[%clk 0:01:59]} 19. axb3 {[%clk 0:01:50]}  Kc7 {[%clk 0:01:50]} 20. Na4 {[%clk 0:01:49]}  Nd7 {[%clk 0:01:49]} 21. Qe3 {[%clk 0:01:39]}  Rhe8 {[%clk 0:01:44]} 22. Qc3 {[%clk 0:01:22]}  Qe5 {[%clk 0:01:44]} 23. h3 {[%clk 0:01:18]}  Qxc3 {[%clk 0:01:19]} 24. Nxc3 {[%clk 0:01:13]}  Nc5 {[%clk 0:01:19]} 25. Re2 {[%clk 0:01:11]}  Ne6 {[%clk 0:01:18]} 26. h4 {[%clk 0:01:10]}  g5 {[%clk 0:01:18]} 27. Rh1 {[%clk 0:01:08]}  Rg8 {[%clk 0:01:12]} 28. Nd1 {[%clk 0:00:42]}  g4 {[%clk 0:01:01]} 29. Ne3 {[%clk 0:00:32]}  gxf3 {[%clk 0:00:57]} 30. gxf3 {[%clk 0:00:32]}  Rg3 {[%clk 0:00:58]} 31. Rf2 {[%clk 0:00:32]}  Rdg8 {[%clk 0:00:56]} 32. Nf5 {[%clk 0:00:32]}  Rg1+ {[%clk 0:00:56]} 33. Rxg1 {[%clk 0:00:29]}  Rxg1+ {[%clk 0:00:57]} 34. Kd2 {[%clk 0:00:29]}  Kd7 {[%clk 0:00:52]} 35. c3 {[%clk 0:00:29]}  b5 {[%clk 0:00:49]} 36. b4 {[%clk 0:00:28]}  c5 {[%clk 0:00:42]} 37. Ke3 {[%clk 0:00:23]}  cxb4 {[%clk 0:00:35]} 38. Rd2 {[%clk 0:00:20]}  bxc3 {[%clk 0:00:23]} 39. Rxd6+ {[%clk 0:00:19]}  Kc7 {[%clk 0:00:24]} 40. bxc3 {[%clk 0:00:17]}  Nc5 {[%clk 0:00:24]} 41. Rxf6 {[%clk 0:00:16]}  a5 {[%clk 0:00:25]} 42. Nd4 {[%clk 0:00:16]}  Kd7 {[%clk 0:00:17]} 43. Nxb5 {[%clk 0:00:15]}  a4 {[%clk 0:00:18]} 44. Rf5 {[%clk 0:00:14]}  Ne6 {[%clk 0:00:16]} 45. Rxh5 {[%clk 0:00:12]}  Re1+ {[%clk 0:00:16]} 46. Kf2 {[%clk 0:00:11]}  Rb1 {[%clk 0:00:17]} 47. Rd5+ {[%clk 0:00:11]}  Ke7 {[%clk 0:00:18]} 48. h5 {[%clk 0:00:10]}  Nf4 {[%clk 0:00:18]} 49. Re5+ {[%clk 0:00:09]}  Kd7 {[%clk 0:00:17]} 50. h6 {[%clk 0:00:09]}  Nd3+ {[%clk 0:00:17]} 51. Kg2 {[%clk 0:00:07]}  Nxe5 {[%clk 0:00:18]} 52. h7 {[%clk 0:00:07]}  Nf7 {[%clk 0:00:18]} 53. f4 {[%clk 0:00:06]}  Rxb5 {[%clk 0:00:18]} 54. e5 {[%clk 0:00:05]}  a3 {[%clk 0:00:18]} 0-1


[Site "https://www.chess.com"]

[Event "Titled Tuesday Blitz May 03 Early 2022"]
[White "Vysochin, Spartak"]
[Black "Nan, M K Khine Hlyan"]
[WhiteFideId "14103516"]
[BlackFideId "13002899"]
[WhiteElo "2385"]
[BlackElo "1943"]
[Result "1-0"]
[Round "02"]
[TimeControl "180+1"]
[Date "2022.05.03"]
[WhiteClock "0:02:12"]
[BlackClock "0:02:13"]

1. e4 {[%clk 0:03:00]}  e5 {[%clk 0:02:57]} 2. Nf3 {[%clk 0:02:59]}  Nc6 {[%clk 0:02:54]} 3. Bb5 {[%clk 0:02:55]}  a6 {[%clk 0:02:53]} 4. Bxc6 {[%clk 0:02:55]}  dxc6 {[%clk 0:02:53]} 5. O-O {[%clk 0:02:56]}  Bd6 {[%clk 0:02:50]} 6. d4 {[%clk 0:02:55]}  Qe7 {[%clk 0:02:45]} 7. dxe5 {[%clk 0:02:52]}  Bxe5 {[%clk 0:02:45]} 8. Nxe5 {[%clk 0:02:52]}  Qxe5 {[%clk 0:02:44]} 9. Nc3 {[%clk 0:02:51]}  Nf6 {[%clk 0:02:43]} 10. Qf3 {[%clk 0:02:42]}  O-O {[%clk 0:02:41]} 11. Bf4 {[%clk 0:02:41]}  Qe7 {[%clk 0:02:18]} 12. Bg5 {[%clk 0:02:34]}  Be6 {[%clk 0:02:17]} 13. e5 {[%clk 0:02:32]}  Bd5 {[%clk 0:02:17]} 14. Nxd5 {[%clk 0:02:23]}  Qxe5 {[%clk 0:02:17]} 15. Nxf6+ {[%clk 0:02:20]}  Kh8 {[%clk 0:02:15]} 16. Nd7 {[%clk 0:02:12]}  Qxg5 {[%clk 0:02:13]} 17. Nxf8 {[%clk 0:02:12]} 1-0


[Site "https://www.chess.com"]